[Event "CCT Airthings Masters Play-In 2023"]
[Site "Online"]
[Date "2023.02.03"]
[Round "1"]
[White "TheCount"]
[Black "Harsha_Bharathakoti"]
[Result "1-0"]
[ECO "B40"]
[WhiteElo "2659"]
[BlackElo "2523"]
[Annotator "TA"]
[PlyCount "45"]
[EventDate "2023.02.03"]
[EventType "swiss"]
[EventCountry "NET"]
[SourceTitle "playchess.com"]
[Source "ChessBase"]
[SourceQuality "1"]
[TimeControl "600+2"]

{[%evp 9,45,0,7,20,14,12,-4,-27,-20,-23,10,-46,26,-36,0,-8,0,-3,0,0,0,0,0,0,0,-1,125,123,319,295,294,287,1443,1297,29994,29995,29995,29996]} 1. e4 {[%emt 0:00:04]} c5 {[%emt 0:00:11]} 2. Nf3 {[%emt 0:00:11]} e6 {[%emt 0:00:03]} 3. b3 {[%emt 0:00:07]} a6 {[%emt 0:00:35]} 4. Bb2 {[%emt 0:00:07]} Nc6 {[%emt 0:00:02]} 5. c4 {[%emt 0:00:38]} Nf6 {[%emt 0:00:58]} 6. e5 {[%emt 0:00:10] B40: Sicilian: 2...e6, Unusual lines.} Ng4 {[%emt 0:00:02][%cal Bf6g4,Bg4h6,Bh6f5][%mdl 32]} 7. h3 {[%emt 0:00:13]} Nh6 {[%emt 0:00:03]} 8. Be2 $5 {[%emt 0:01:23][%mdl 4] The position is equal. An interesting side line.} Nf5 {[%emt 0:00:18]} 9. O-O {[%emt 0:00:03] [#]} Be7 $146 {[%emt 0:00:16]} ({Predecessor:} 9... d6 10. exd6 Bxd6 11. Bd3 Nfd4 12. Nxd4 cxd4 13. Be4 e5 14. Re1 O-O 15. c5 Bxc5 16. Bxc6 bxc6 17. Rxe5 {0-1 Enersen,E (1911)-Gajewski,G (2630) Oslo op Fornebu 2017 (1)}) 10. Nc3 {[%emt 0:00:03]} (10. Bd3 $11) 10... O-O {[%emt 0:00:36]} (10... d6 $1 $15) 11. Ne4 {[%emt 0:00:05]} ({Better is} 11. Bd3 $1 $11) 11... b6 {[%emt 0:00:43]} 12. Re1 {[%emt 0:00:06]} Bb7 {[%emt 0:00:04]} 13. Bd3 {[%emt 0:00:04]} f6 {[%emt 0:01:20]} 14. exf6 {[%emt 0:01:21]} gxf6 {[%emt 0:00:00]} 15. Ng3 {[%emt 0:00:20]} Nxg3 {[%emt 0:00:52]} 16. fxg3 {[%emt 0:00:00]} f5 {[%emt 0:00:00] Wards off Be4} 17. g4 {[%emt 0:00:36]} fxg4 {[%emt 0:00:03]} (17... Bf6 $11 {keeps the balance.} 18. Bc3 (18. Bxf6 Qxf6 19. gxf5 exf5 $15) 18... fxg4 19. hxg4 Qe7) 18. Ne5 $16 {[%emt 0:00:12] White is more active.} Nxe5 {[%emt 0:02:04] Loses the game.} (18... Bh4 $16) 19. Rxe5 $18 {[%emt 0:00:29][%cal Be1e5,Be5g5,Bg5g8][%mdl 32]} ({Inferior is} 19. Bxe5 h5 $11) 19... Rf4 {[%emt 0:00:01] [#] ...Bh4 is the strong threat.} 20. Bxh7+ $1 {[%emt 0:00:25][%mdl 64] Decoy} Kxh7 $2 {[%emt 0:00:10]} (20... Kf8) 21. Qc2+ {[%emt 0:00:05]} ({Wrong is} 21. Rh5+ $2 Kg6 22. hxg4 Bf6 $19) 21... Kg7 {[%emt 0:01:29]} 22. Rg5+ {[%emt 0:00:09][%mdl 64] Discovered Attack (Double check), Double Attack} (22. Rxc5+ $2 {too greedy.} Bf6 23. Rg5+ Kf8 24. Rxg4 Rxg4 25. hxg4 Bxb2 26. Rf1+ Ke7 27. Qxb2 Qh8 28. Qxh8 Rxh8 $19) 22... Kf8 {[%emt 0:00:01] [#]} 23. Rg8+ $3 {[%emt 0:00:03][%mdl 576] Skewer, Decoy. An entertaining game by TheCount.   Weighted Error Value: White=0.14 (very precise) /Black=0.83} 1-0

[Event "CCT Airthings Masters Play-In 2023"]
[Site "Online"]
[Date "2023.02.03"]
[Round "1"]
[White "Duhless"]
[Black "SergeiAza"]
[Result "*"]
[ECO "E17"]
[WhiteElo "2655"]
[BlackElo "2521"]
[Annotator "TA"]
[PlyCount "30"]
[EventDate "2023.02.03"]
[EventType "swiss"]
[EventCountry "NET"]
[SourceTitle "playchess.com"]
[Source "ChessBase"]
[SourceQuality "1"]
[TimeControl "600+2"]

{[%evp 15,30,0,0,0,-16,0,0,-14,-3,-22,-14,-12,-17,-34,-23,-45,-25]} 1. d4 {[%emt 0:00:05]} Nf6 {[%emt 0:00:04]} 2. Nf3 {[%emt 0:00:02]} b6 {[%emt 0:00:02]} 3. g3 {[%emt 0:00:06]} Bb7 {[%emt 0:00:09]} 4. c4 {[%emt 0:00:03]} e6 {[%emt 0:00:07]} 5. Bg2 {[%emt 0:00:01]} Be7 {[%emt 0:00:01]} 6. O-O {[%emt 0:00:14]} O-O {[%emt 0:00:01]} 7. d5 {[%emt 0:00:01]} exd5 {[%emt 0:00:05]} 8. Nd4 {[%emt 0:00:01]} Bc6 {[%emt 0:00:37]} 9. cxd5 {[%emt 0:00:03] E17: Queen's Indian: 4 g3 Bb7 5 Bg2 Be7.} Bxd5 {[%emt 0:00:03]} 10. Bxd5 {[%emt 0:00:01]} ({Much worse is} 10. Nc3 Bxg2 11. Kxg2 c5 $17) 10... Nxd5 {[%emt 0:00:01][%cal Bf6d5,Bd5c7,Bc7e6][%mdl 32]} 11. e4 {[%emt 0:00:02] The position is equal.} (11. Nf5 $5 {[%cal Rd1d5]} Nf6 12. Nc3 $11) 11... c5 {[%emt 0:00:35]} 12. Nf5 {[%emt 0:00:42]} (12. exd5 $5 {[%cal Rd4f5]} cxd4 13. Qxd4 $11) 12... Nc7 {[%emt 0:00:03] [#]} 13. Nc3 $146 {[%emt 0:00:38]} ({Predecessor:} 13. Qg4 Ne6 14. Nc3 Nc6 15. Nd5 Bf6 16. f4 Bd4+ 17. Be3 Bxe3+ {½-½ Sosonko,G (2545)-Geller,E (2565) Las Palmas-09 1980 (2)}) 13... Nc6 {[%emt 0:00:23]} 14. Bf4 {[%emt 0:00:26]} Ne6 {[%emt 0:00:35]} 15. Nd5 {[%emt 0:00:16]} Bf6 {[%emt 0:01:06] Weighted Error Value: White=0.09 (flawless) /Black=0.02 (flawless)} *

[Event "CCT Airthings Masters Play-In 2023"]
[Site "Online"]
[Date "2023.02.03"]
[Round "1"]
[White "LiemLe"]
[Black "Igrok"]
[Result "*"]
[ECO "D02"]
[WhiteElo "2652"]
[BlackElo "2512"]
[Annotator "TA"]
[PlyCount "44"]
[EventDate "2023.02.03"]
[EventType "swiss"]
[EventCountry "NET"]
[SourceTitle "playchess.com"]
[Source "ChessBase"]
[SourceQuality "1"]
[TimeControl "600+2"]

{[%evp 9,44,0,6,0,22,15,13,-2,0,-7,-3,0,0,-12,-8,-14,0,-28,0,0,2,6,4,0,16,-27,25,29,52,58,56,54,47,56,81,70,71]} 1. d4 {[%emt 0:00:13]} d5 {[%emt 0:00:05]} 2. Nf3 {[%emt 0:00:05]} Nf6 {[%emt 0:00:01]} 3. Bf4 {[%emt 0:00:02]} c5 {[%emt 0:00:06]} 4. e3 {[%emt 0:00:02]} e6 {[%emt 0:00:01]} 5. c3 {[%emt 0:00:05]} Bd6 {[%emt 0:00:12]} 6. Nbd2 {[%emt 0:00:03] D02: 1 d4 d5 2 Nf3 sidelines, including 2...Nf6 3 g3 and 2...Nf6 3 Bf4.} Bxf4 {[%emt 0:00:03]} 7. exf4 {[%emt 0:00:00]} O-O {[%emt 0:00:08]} 8. Bd3 {[%emt 0:00:26] The position is equal.} b6 {[%emt 0:00:09]} 9. Qe2 {[%emt 0:00:05]} a5 {[%emt 0:00:08]} 10. O-O {[%emt 0:00:01]} Ba6 {[%emt 0:00:06] [#]} 11. Rac1 $146 {[%emt 0:00:02]} ({Predecessor:} 11. Bxa6 Nxa6 12. Ne5 Qd6 13. h4 cxd4 14. cxd4 Rfc8 15. Rfc1 Nb4 16. Ndf3 Nc6 17. Qb5 {½-½ Aronian,L (2781)-Caruana,F (2820) Paris GCT Blitz 2021 (7)}) 11... Bxd3 {[%emt 0:00:04]} 12. Qxd3 {[%emt 0:00:00]} Nc6 {[%emt 0:00:13]} 13. Rfe1 {[%emt 0:00:08]} Qc7 {[%emt 0:00:04]} 14. f5 {[%emt 0:00:07]} exf5 {[%emt 0:00:04]} 15. Qxf5 {[%emt 0:00:00]} Rfe8 {[%emt 0:00:19]} 16. dxc5 {[%emt 0:00:18]} bxc5 {[%emt 0:00:02]} 17. c4 {[%emt 0:00:01]} Rxe1+ {[%emt 0:01:12]} (17... Ne7 $142 18. Qe5 Qb6) 18. Rxe1 $11 {[%emt 0:00:00]} Qc8 {[%emt 0:00:48]} 19. Qxc8+ {[%emt 0:00:17]} Rxc8 {[%emt 0:00:01]} 20. cxd5 {[%emt 0:00:04]} Nxd5 {[%emt 0:00:04]} 21. Nc4 {[%emt 0:00:02]} Kf8 {[%emt 0:00:31]} 22. Rd1 {[%emt 0:00:11] White is more active.} Nf4 {[%emt 0:00:31] Weighted Error Value: White=0.09 (flawless) /Black=0.14 (very precise)} *

[Event "CCT Airthings Masters Play-In 2023"]
[Site "Online"]
[Date "2023.02.03"]
[Round "1"]
[White "Jospem"]
[Black "Alexandr_Predke"]
[Result "*"]
[ECO "B22"]
[WhiteElo "2646"]
[BlackElo "2494"]
[Annotator "TA"]
[PlyCount "38"]
[EventDate "2023.02.03"]
[EventType "swiss"]
[EventCountry "NET"]
[SourceTitle "playchess.com"]
[Source "ChessBase"]
[SourceQuality "1"]
[TimeControl "600+2"]

{[%evp 13,22,0,0,0,0,0,0,0,0,0,-2]} 1. e4 {[%emt 0:00:03]} c5 {[%emt 0:00:08]} 2. Nf3 {[%emt 0:00:01]} e6 {[%emt 0:00:02]} 3. c3 {[%emt 0:00:02]} d5 {[%emt 0:00:04]} 4. exd5 {[%emt 0:00:04]} Qxd5 {[%emt 0:00:01]} 5. d4 {[%emt 0:00:02]} Nf6 {[%emt 0:00:01]} 6. Be3 {[%emt 0:00:06]} cxd4 {[%emt 0:00:22]} 7. cxd4 {[%emt 0:00:11]} Bb4+ {[%emt 0:00:28] The position is equal.} 8. Nc3 {[%emt 0:00:03] B22: Sicilian: 2 c3.} Qa5 {[%emt 0:00:08]} 9. Qb3 {[%emt 0:01:39]} O-O {[%emt 0:01:04]} 10. Be2 {[%emt 0:00:58]} b6 {[%emt 0:00:34]} 11. Ne5 {[%emt 0:00:12]} Ba6 {[%emt 0:00:41] [#] Not much happened in this game.   Weighted Error Value: White=0.00 (flawless) /Black=0.00 (flawless)} {Predecessor:} 12. Bxa6 $146 Bxc3+ 13. bxc3 Qxa6 14. c4 Rc8 15. O-O Nc6 16. Rfd1 Rc7 17. Bf4 Nxe5 18. Bxe5 Rxc4 19. Bxf6 gxf6 {½-½ Radjabov,T (2761)-Ivanchuk,V (2779) Amber-rapid 18th 2009 (10)} *

[Event "CCT Airthings Masters Play-In 2023"]
[Site "Online"]
[Date "2023.02.03"]
[Round "1"]
[White "crescentmoon"]
[Black "starworld123"]
[Result "*"]
[ECO "E21"]
[WhiteElo "2637"]
[BlackElo "2485"]
[Annotator "NA"]
[PlyCount "32"]
[EventDate "2023.02.03"]
[EventType "swiss"]
[EventCountry "NET"]
[SourceTitle "playchess.com"]
[Source "ChessBase"]
[SourceQuality "1"]
[TimeControl "600+2"]

1. d4 {[%emt 0:00:08]} Nf6 {[%emt 0:00:04]} 2. c4 {[%emt 0:00:02]} e6 {[%emt 0:00:01]} 3. Nc3 {[%emt 0:00:02]} Bb4 {[%emt 0:00:02]} 4. e3 {[%emt 0:00:02]} O-O {[%emt 0:00:03]} 5. Bd2 {[%emt 0:00:04]} b6 {[%emt 0:00:02]} 6. Bd3 {[%emt 0:00:04]} Bb7 {[%emt 0:00:02]} 7. Nf3 {[%emt 0:00:02]} d6 {[%emt 0:00:03]} 8. Qc2 {[%emt 0:00:04]} Nbd7 {[%emt 0:00:02]} 9. a3 {[%emt 0:00:05]} Bxc3 {[%emt 0:00:02]} 10. Bxc3 {[%emt 0:00:01]} Qe7 {[%emt 0:00:06]} 11. e4 {[%emt 0:00:34]} e5 {[%emt 0:00:27]} 12. d5 {[%emt 0:02:21]} Nc5 {[%emt 0:00:21]} 13. O-O {[%emt 0:00:13]} Nh5 {[%emt 0:00:44]} 14. Rfe1 {[%emt 0:00:15]} Nxd3 {[%emt 0:00:11]} 15. Qxd3 {[%emt 0:00:01]} Bc8 {[%emt 0:00:04]} 16. Qe3 {[%emt 0:00:25]} f5 {[%emt 0:00:35]} *

[Event "CCT Airthings Masters Play-In 2023"]
[Site "Online"]
[Date "2023.02.03"]
[Round "1"]
[White "Durarbayli, Vasif"]
[Black "cassoulet"]
[Result "*"]
[ECO "B60"]
[WhiteElo "2635"]
[BlackElo "2101"]
[Annotator "TA"]
[PlyCount "45"]
[EventDate "2023.02.03"]
[EventType "swiss"]
[EventCountry "NET"]
[SourceTitle "playchess.com"]
[Source "ChessBase"]
[SourceQuality "1"]
[TimeControl "600+2"]

{[%evp 20,45,36,35,35,33,39,24,40,34,47,35,52,33,30,16,22,20,100,97,84,7,98,100,100,103,85,80]} 1. e4 {[%emt 0:00:04]} c5 {[%emt 0:00:04]} 2. Nf3 {[%emt 0:00:09]} d6 {[%emt 0:00:02]} 3. d4 {[%emt 0:00:03]} cxd4 {[%emt 0:00:00]} 4. Nxd4 {[%emt 0:00:00]} Nf6 {[%emt 0:00:01]} 5. Nc3 {[%emt 0:00:02]} Nc6 {[%emt 0:00:00]} 6. Bg5 {[%emt 0:00:12]} e6 {[%emt 0:00:23]} 7. Qd2 {[%emt 0:00:04]} Qb6 {[%emt 0:00:04]} 8. Bxf6 {[%emt 0:00:05]} gxf6 {[%emt 0:00:02]} 9. Nb3 {[%emt 0:00:02]} a6 {[%emt 0:00:06]} 10. O-O-O {[%emt 0:00:01]} Bd7 {[%emt 0:00:01]} 11. Kb1 {[%emt 0:00:06]} O-O-O {[%emt 0:00:01] B60: Sicilian: Richter-Rauzer: Unusual Black 6th moves and 6...Bd7 without 7 Qd2.} 12. f4 {[%emt 0:00:07]} h5 {[%emt 0:00:03]} 13. Be2 {[%emt 0:00:08][%cal Bf1e2,Be2g4,Bg4h3][%mdl 32]} h4 {[%emt 0:00:02] White has an edge.} 14. Rhf1 {[%emt 0:00:03]} Kb8 {[%emt 0:00:06]} 15. Bg4 {[%emt 0:00:13]} Be7 {[%emt 0:00:06]} 16. Bh3 {[%emt 0:00:32]} Na5 {[%emt 0:00:13] [#]} 17. f5 $146 {[%emt 0:00:04]} ({Predecessor:} 17. Qd3 Nxb3 18. axb3 Qc5 19. Rfe1 Rhg8 20. Qd2 Bf8 21. Rf1 Rh8 22. Qd3 {1-0 Blehm,P (2400)-Kempinski,R (2530) POL-chT 53rd 1997 (5)}) 17... Nc4 {[%emt 0:00:11]} 18. Qf2 {[%emt 0:00:34]} Qb4 {[%emt 0:00:55]} (18... Qc7 $11 {keeps the balance.}) 19. fxe6 {[%emt 0:00:15]} fxe6 {[%emt 0:00:03]} 20. Rd3 {[%emt 0:00:12]} (20. Rd4 $16) 20... Rc8 {[%emt 0:00:30]} (20... Ne5 $11) 21. a3 $16 {[%emt 0:00:49] White is better.} Qb6 {[%emt 0:00:17]} 22. Qxb6 {[%emt 0:00:03]} Nxb6 {[%emt 0:00:00]} 23. Nd4 {[%emt 0:00:01] Weighted Error Value: White=0.12 (very precise) /Black=0.27 (precise)} *

[Event "CCT Airthings Masters Play-In 2023"]
[Site "Online"]
[Date "2023.02.03"]
[Round "1"]
[White "chessintuit"]
[Black "OK97"]
[Result "*"]
[ECO "B68"]
[WhiteElo "2635"]
[BlackElo "2477"]
[Annotator "NA"]
[PlyCount "33"]
[EventDate "2023.02.03"]
[EventType "swiss"]
[EventCountry "NET"]
[SourceTitle "playchess.com"]
[Source "ChessBase"]
[SourceQuality "1"]
[TimeControl "600+2"]

1. e4 {[%emt 0:00:03]} c5 {[%emt 0:00:06]} 2. Nf3 {[%emt 0:00:01]} d6 {[%emt 0:00:02]} 3. d4 {[%emt 0:00:01]} cxd4 {[%emt 0:00:15]} 4. Nxd4 {[%emt 0:00:00]} Nf6 {[%emt 0:00:01]} 5. Nc3 {[%emt 0:00:00]} Nc6 {[%emt 0:00:01]} 6. Bg5 {[%emt 0:00:02]} e6 {[%emt 0:00:01]} 7. Qd2 {[%emt 0:00:01]} a6 {[%emt 0:00:03]} 8. O-O-O {[%emt 0:00:02]} Bd7 {[%emt 0:00:01]} 9. f4 {[%emt 0:00:10]} Be7 {[%emt 0:00:01]} 10. Nf3 {[%emt 0:00:45]} b5 {[%emt 0:00:03]} 11. e5 {[%emt 0:00:33]} b4 {[%emt 0:00:03]} 12. exf6 {[%emt 0:00:23]} bxc3 {[%emt 0:00:01]} 13. Qxc3 {[%emt 0:00:01]} gxf6 {[%emt 0:00:02]} 14. Bh6 {[%emt 0:00:02]} d5 {[%emt 0:00:32]} 15. f5 {[%emt 0:00:24]} e5 {[%emt 0:00:27]} 16. Rxd5 {[%emt 0:01:26]} Nb4 {[%emt 0:00:02]} 17. Bc4 {[%emt 0:00:01]} *

[Event "CCT Airthings Masters Play-In 2023"]
[Site "Online"]
[Date "2023.02.03"]
[Round "1"]
[White "wonderfultime"]
[Black "MikaelyanArman"]
[Result "1-0"]
[ECO "D02"]
[WhiteElo "2635"]
[BlackElo "2467"]
[Annotator "TA"]
[PlyCount "79"]
[EventDate "2023.02.03"]
[EventType "swiss"]
[EventCountry "NET"]
[SourceTitle "playchess.com"]
[Source "ChessBase"]
[SourceQuality "1"]
[TimeControl "600+2"]

{[%evp 9,79,0,13,0,2,-4,0,0,0,0,0,0,0,0,0,0,2,0,25,27,31,20,32,20,57,48,77,43,66,69,83,101,109,108,110,106,142,145,180,173,166,186,279,270,270,283,279,275,299,288,276,293,278,261,305,294,318,316,362,355,377,374,399,395,398,396,397,396,819,819,755,727]} 1. d4 {[%emt 0:00:04]} d5 {[%emt 0:00:05]} 2. Nf3 {[%emt 0:00:02]} Nf6 {[%emt 0:00:01]} 3. Bf4 {[%emt 0:00:00]} c5 {[%emt 0:00:07]} 4. c3 {[%emt 0:00:01]} e6 {[%emt 0:00:10]} 5. e3 {[%emt 0:00:02]} Bd6 {[%emt 0:00:02]} 6. Nbd2 {[%emt 0:00:01] D02: 1 d4 d5 2 Nf3 sidelines, including 2...Nf6 3 g3 and 2...Nf6 3 Bf4.} O-O {[%emt 0:00:19] The main line 6...0-0 scores better than 6...Qc7.} 7. Bd3 {[%emt 0:00:01]} Bxf4 {[%emt 0:00:36]} 8. exf4 {[%emt 0:00:02] The position is equal.} b6 {[%emt 0:00:00]} 9. Qe2 {[%emt 0:00:02]} a5 {[%emt 0:00:06]} 10. O-O {[%emt 0:00:02]} Ba6 {[%emt 0:00:05]} 11. Bxa6 {[%emt 0:00:01]} Nxa6 {[%emt 0:00:03]} 12. Rfe1 {[%emt 0:00:00]} Qd6 {[%emt 0:01:35]} 13. g3 {[%emt 0:00:03] [#]} cxd4 $146 {[%emt 0:00:07]} ({Predecessor:} 13... Nb8 14. Ne5 cxd4 15. cxd4 Nc6 16. Ndf3 Rfc8 17. Rac1 h6 18. Qb5 Ne7 19. a3 Rc7 20. Rxc7 Qxc7 21. Qe2 {½-½ Sadhwani,R (2545)-Demchenko,A (2641) PNWCC Online blitz JP 18th 2020 (8)}) 14. Nxd4 {[%emt 0:00:04]} Rfe8 {[%emt 0:00:20]} 15. Rad1 {[%emt 0:00:12]} Nc5 {[%emt 0:00:05]} 16. Nf1 {[%emt 0:01:29][%cal Bd2f1,Bf1e3,Be3c4,Bc4b6][%mdl 32]} Nfe4 {[%emt 0:00:16]} 17. Ne3 {[%emt 0:00:02]} a4 {[%emt 0:00:18]} 18. a3 {[%emt 0:00:32]} h6 {[%emt 0:00:35]} 19. c4 {[%emt 0:00:05] aiming for cxd5.} dxc4 {[%emt 0:00:49] White now steadily converts the win.} 20. Nxc4 {[%emt 0:00:03]} Qc7 {[%emt 0:00:09] [#]} 21. Nb5 $1 {[%emt 0:00:38]} Qe7 {[%emt 0:00:41]} 22. Rd4 {[%emt 0:01:59]} (22. Nxb6 $6 Rab8 $11) 22... Nf6 {[%emt 0:01:07]} 23. Nxb6 {[%emt 0:00:09] White is more active.} Rad8 {[%emt 0:00:24] [#] ...Rxd4 is the strong threat.} 24. Red1 {[%emt 0:00:56][%cal Be1d1,Bd1d4,Bd4d8][%mdl 32]} (24. Nxa4 $2 Rxd4 25. Nxd4 Nxa4 $19) 24... Rxd4 {[%emt 0:00:05]} 25. Rxd4 {[%emt 0:00:00]} (25. Nxd4 $6 Qb7 26. Nc4 Rd8 $16) 25... e5 {[%emt 0:01:28]} (25... Rd8 $142) 26. fxe5 $18 {[%emt 0:00:14]} Qxe5 {[%emt 0:00:00]} 27. Qxe5 {[%emt 0:00:05]} Rxe5 {[%emt 0:00:00]} 28. Nc3 {[%emt 0:00:03] Inhibits Re2.} ({Stronger than} 28. Nxa4 Nxa4 29. Rxa4 Rxb5 $17) 28... Nb3 {[%emt 0:00:38]} 29. Rd8+ {[%emt 0:00:10]} Kh7 {[%emt 0:00:03]} 30. Nbxa4 {[%emt 0:00:01]} ({But not} 30. Ncxa4 $6 Re1+ 31. Kg2 Ne4 $18) 30... h5 {[%emt 0:00:13]} 31. h3 {[%emt 0:00:10]} g5 {[%emt 0:00:01]} 32. Nb6 {[%emt 0:00:08]} Re1+ {[%emt 0:00:07]} 33. Kg2 {[%emt 0:00:02]} g4 {[%emt 0:00:06]} 34. hxg4 {[%emt 0:00:04]} hxg4 {[%emt 0:00:00]} 35. Nbd5 {[%emt 0:00:51]} Nxd5 {[%emt 0:00:05]} 36. Nxd5 {[%emt 0:00:04]} ({Much less strong is} 36. Rxd5 Kg6 37. Nd1 Re4 $18) 36... Kg7 {[%emt 0:00:12]} 37. Ne3 {[%emt 0:00:03] Against Rd1} Re2 {[%emt 0:00:06]} 38. Nxg4 {[%emt 0:00:01]} Rxb2 $2 {[%emt 0:00:01]} (38... Re1 39. Ne3 Rb1) 39. Rb8 {[%emt 0:00:02]} Rb1 {[%emt 0:00:03]} 40. a4 {[%emt 0:00:03] Weighted Error Value: White=0.04 (flawless) /Black=0.18 (very precise)} 1-0

[Event "CCT Airthings Masters Play-In 2023"]
[Site "Online"]
[Date "2023.02.03"]
[Round "1"]
[White "vladislavkovalev"]
[Black "GM_dmitrij"]
[Result "*"]
[ECO "C78"]
[WhiteElo "2632"]
[BlackElo "2463"]
[Annotator "TA"]
[PlyCount "33"]
[EventDate "2023.02.03"]
[EventType "swiss"]
[EventCountry "NET"]
[SourceTitle "playchess.com"]
[Source "ChessBase"]
[SourceQuality "1"]
[TimeControl "600+2"]

{[%evp 14,33,0,-6,-2,-29,-23,-21,-21,-25,-32,-33,-25,-39,-12,-31,0,0,14,0,3,10]} 1. e4 {[%emt 0:00:03]} e5 {[%emt 0:00:57]} 2. Nf3 {[%emt 0:00:05]} Nc6 {[%emt 0:00:01]} 3. Bb5 {[%emt 0:00:37][%cal Bf1b5,Bb5a4,Ba4b3][%mdl 32]} a6 {[%emt 0:00:05]} 4. Ba4 {[%emt 0:00:03]} Nf6 {[%emt 0:00:02]} 5. d3 {[%emt 0:00:00]} Bc5 {[%emt 0:00:03]} 6. O-O {[%emt 0:00:02]} b5 {[%emt 0:00:04]} 7. Bb3 {[%emt 0:00:01]} d6 {[%emt 0:00:01]} 8. h3 {[%emt 0:00:02] Recently 8.a4 got a lot of attention.} Na5 {[%emt 0:00:06] C78: Ruy Lopez: Archangelsk and Möller Defences.} 9. Be3 {[%emt 0:00:20]} Bxe3 {[%emt 0:00:23]} 10. fxe3 {[%emt 0:00:00]} O-O {[%emt 0:00:01]} 11. c3 {[%emt 0:00:21]} Nxb3 {[%emt 0:00:04]} 12. axb3 {[%emt 0:00:00] [#]} c5 $146 {[%emt 0:00:09]} ({Predecessor:} 12... Qe7 13. Nbd2 Bb7 14. Qe2 c5 15. Qf2 h6 16. Nh4 Bc8 17. Ra5 Ra7 18. Nf5 Bxf5 19. Qxf5 {1-0 Karas,N (2172)-Ryaboy,V (1781) San Francisco TNM Marathon op 2012 (6)}) 13. c4 {[%emt 0:00:03]} Rb8 {[%emt 0:00:15]} 14. Rf2 {[%emt 0:00:10]} Rb6 {[%emt 0:00:44]} 15. Nc3 {[%emt 0:00:04] The position is equal.} Be6 {[%emt 0:00:04]} 16. Qd2 {[%emt 0:00:51]} Qe7 {[%emt 0:00:09]} 17. Nd5 {[%emt 0:01:33] Weighted Error Value: White=0.12 (very precise) /Black=0.08 (flawless)} *

[Event "CCT Airthings Masters Play-In 2023"]
[Site "Online"]
[Date "2023.02.03"]
[Round "1"]
[White "OparinGrigoriy"]
[Black "Panjwani, Raja"]
[Result "*"]
[ECO "E06"]
[WhiteElo "2618"]
[BlackElo "2485"]
[Annotator "TA"]
[PlyCount "48"]
[EventDate "2023.02.03"]
[EventType "swiss"]
[EventCountry "NET"]
[SourceTitle "playchess.com"]
[Source "ChessBase"]
[SourceQuality "1"]
[TimeControl "600+2"]

{[%evp 14,48,0,-16,39,20,18,27,55,42,39,44,42,47,47,45,52,40,42,33,88,87,87,90,110,123,145,142,148,135,140,125,152,96,110,110,116]} 1. d4 {[%emt 0:00:08]} Nf6 {[%emt 0:00:11]} 2. Nf3 {[%emt 0:00:02]} e6 {[%emt 0:00:01]} 3. c4 {[%emt 0:00:02]} d5 {[%emt 0:00:07]} 4. g3 {[%emt 0:00:01]} Be7 {[%emt 0:00:08]} 5. Bg2 {[%emt 0:00:02]} O-O {[%emt 0:00:02]} 6. Qc2 {[%emt 0:00:02]} c5 {[%emt 0:00:40]} 7. dxc5 {[%emt 0:00:05]} Qa5+ {[%emt 0:00:08]} 8. Nc3 {[%emt 0:00:04]} Qxc5 {[%emt 0:00:37] E06: Closed Catalan: Early deviations.} ({Black should try} 8... dxc4 $11 9. O-O Nc6) 9. cxd5 $14 {[%emt 0:00:11]} Nxd5 {[%emt 0:00:02]} 10. Bd2 {[%emt 0:00:09]} Bf6 {[%emt 0:00:13] White has an edge.} 11. Rc1 {[%emt 0:00:05] [#] And now Nxd5 would win.} Nxc3 {[%emt 0:00:07]} 12. Bxc3 {[%emt 0:00:01]} Bxc3+ {[%emt 0:00:02]} 13. Qxc3 {[%emt 0:00:00]} Qxc3+ {[%emt 0:00:01]} 14. Rxc3 {[%emt 0:00:00]} Nc6 {[%emt 0:00:02] Inhibits Ne5.} 15. Ng5 {[%emt 0:00:35][%cal Bf3g5,Bg5e4,Be4c5][%mdl 32]} Bd7 {[%emt 0:00:12]} 16. Ne4 {[%emt 0:00:05] [#]} Nb4 $146 {[%emt 0:00:34]} (16... Rfd8 $14) ({Predecessor:} 16... Rfd8 17. Nc5 Rab8 18. Nxd7 Rxd7 19. Bxc6 bxc6 20. Rc2 a5 21. f3 Rdb7 22. b3 a4 23. Kf2 {½-½ Belov,V (2587)-Jakovenko,D (2710) FIDE World Cup 2007 (2.1)}) 17. Nc5 $16 {[%emt 0:00:02][%csl LRb7,LRd7]} Bc6 {[%emt 0:00:33]} 18. Bxc6 {[%emt 0:00:03]} Nxc6 {[%emt 0:00:06]} 19. Nxb7 {[%emt 0:00:10] White is more active.} Nb4 {[%emt 0:00:01][%cal Oa8b8] [#]} 20. a3 $1 {[%emt 0:00:17]} Rab8 {[%emt 0:00:04]} 21. Nc5 {[%emt 0:00:10]} Nc6 {[%emt 0:00:06]} 22. Nd3 {[%emt 0:00:07]} Nd4 {[%emt 0:00:04][%cal Oe6e5]} 23. Kd2 {[%emt 0:00:37]} ({Better is} 23. e3 Nb5 24. Rc1) 23... e5 {[%emt 0:00:05]} 24. f3 {[%emt 0:00:06]} ({Reject} 24. Nxe5 $6 Rxb2+ 25. Ke3 Rxe2+ 26. Kxd4 Rd8+ 27. Kc4 Rxe5 $11) 24... Rfe8 {[%emt 0:00:11] Weighted Error Value: White=0.06 (flawless) /Black=0.19 (very precise)} *